fUSD/lending_fUSD_20250127
["ID","MTS","AMOUNT","RATE_DAILY","PERIOD"]
[350641681,1738014634119,-500.0,0.00015379,2]
[350641682,1738014634128,-500.0,0.00015379,2]
[350641683,1738014634137,-500.0,0.00015379,2]
[350641684,1738014634148,-506.43526092,0.00015379,2]
[350641685,1738014634157,-500.0,0.00015379,2]
[350641686,1738014634167,-500.0,0.00015379,2]
[350641687,1738014634176,-500.0,0.00015379,2]
[350641688,1738014634357,-500.0,0.00015379,2]
[350641689,1738014634368,-508.70125497,0.00015379,2]
[350641690,1738014634379,-500.0,0.00015379,2]
[350641691,1738014634389,-506.25348796,0.00015379,2]
[350641692,1738014634399,-500.0,0.00015379,2]
[350641693,1738014634409,-500.0,0.00015379,2]
[350641694,1738014634419,-500.0,0.00015379,2]
[350641695,1738014634430,-500.0,0.00015379,2]
[350641696,1738014634441,-500.0,0.00015379,2]
[350641697,1738014634450,-500.0,0.00015379,2]
[350641698,1738014634461,-500.0,0.00015379,2]
[350641699,1738014634471,-500.0,0.00015379,2]
[350641700,1738014634481,-506.88,0.00015379,2]
[350641701,1738014634490,-500.0,0.00015379,2]
[350641702,1738014634500,-500.0,0.00015379,2]
[350641703,1738014634509,-500.0,0.00015379,2]
[350641704,1738014634519,-500.0,0.00015379,2]
[350641705,1738014634528,-500.0,0.00015379,2]
[350641706,1738014634537,-500.0,0.00015379,2]
[350641707,1738014634546,-500.0,0.00015379,2]
[350641708,1738014634555,-500.0,0.00015379,2]
[350641709,1738014634564,-500.0,0.00015379,2]
[350641710,1738014634574,-500.0,0.00015379,2]
[350641711,1738014634583,-500.0,0.00015379,2]
[350641712,1738014634592,-500.0,0.00015379,2]
[350641713,1738014634601,-500.0,0.00015379,2]
[350641714,1738014634610,-500.0,0.00015379,2]
[350641715,1738014634619,-768.0,0.00015379,2]
[350641716,1738014634627,-500.0,0.00015379,2]
[350641717,1738014634637,-500.0,0.00015379,2]
[350641718,1738014634647,-500.0,0.00015379,2]
[350641719,1738014634655,-500.0,0.00015379,2]
[350641720,1738014634665,-500.0,0.00015379,2]
[350641721,1738014634674,-500.0,0.00015379,2]
[350641722,1738014634683,-500.0,0.00015379,2]
[350641723,1738014634694,-500.0,0.00015379,2]
[350641724,1738014634703,-500.0,0.00015379,2]
[350641725,1738014634713,-500.0,0.00015379,2]
[350641726,1738014634722,-500.0,0.00015379,2]
[350641727,1738014634731,-500.0,0.00015379,2]
[350641728,1738014634740,-500.0,0.00015379,2]
[350641729,1738014634750,-500.0,0.00015379,2]
[350641730,1738014634759,-972.0,0.00015379,2]
[350641731,1738014634768,-500.0,0.00015379,2]
[350641732,1738014634777,-500.0,0.00015379,2]
[350641733,1738014634786,-500.0,0.00015379,2]
[350641734,1738014634795,-500.0,0.00015379,2]
[350641735,1738014634805,-500.0,0.00015379,2]
[350641736,1738014634814,-500.0,0.00015379,2]
[350641737,1738014634823,-500.0,0.00015379,2]
[350641738,1738014634832,-500.0,0.00015379,2]
[350641739,1738014634841,-836.0,0.00015379,2]
[350641740,1738014634851,-500.0,0.00015379,2]
[350641741,1738014634860,-500.0,0.00015379,2]
[350641742,1738014634869,-500.0,0.00015379,2]
[350641743,1738014634878,-55555.0,0.0001538,2]
[350641744,1738014634888,-493.0118427,0.0001538,2]
[350641745,1738014634897,-464.4123158,0.0001538,2]
[350641746,1738014634906,-169.56200885,0.0001538,2]
[350641747,1738014634915,-2487.1739333,0.0001538,2]
[350641748,1738014634925,-500.0,0.00015451,2]
[350641749,1738014634934,-363.11813259,0.00015451,2]
[350641750,1738014634943,-500.0,0.00015451,2]
[350641751,1738014634952,-221.51867089,0.00015451,2]
[350641752,1738014634961,-500.0,0.00015451,2]
[350641753,1738014634971,-293.48132911,0.00015451,2]
[350641754,1738014634980,-500.0,0.00015451,2]
[350641755,1738014634990,-500.0,0.00015451,2]
[350641756,1738014634999,-500.0,0.00015451,2]
[350641757,1738014635008,-500.0,0.00015451,2]
[350641758,1738014635018,-500.0,0.00015451,2]
[350641759,1738014635027,-500.0,0.00015451,2]
[350641760,1738014635036,-500.0,0.00015451,2]
[350641761,1738014635045,-500.0,0.00015451,2]
[350641762,1738014635054,-500.0,0.00015451,2]
[350641763,1738014635064,-500.0,0.00015451,2]
[350641764,1738014635073,-500.0,0.00015451,2]
[350641765,1738014635082,-500.0,0.00015451,2]
[350641766,1738014635092,-210.53471146,0.00015451,2]
[350641767,1738014635102,-500.0,0.00015451,2]
[350641768,1738014635111,-187.28575161,0.00015451,2]
[350641769,1738014635120,-500.0,0.00015451,2]
[350641770,1738014635130,-500.0,0.00015451,2]
[350641771,1738014635139,-596.45266775,0.00015451,2]
[350641772,1738014635148,-500.0,0.00015451,2]
[350641773,1738014635158,-500.0,0.00015451,2]
[350641774,1738014635167,-500.0,0.00015451,2]
[350641775,1738014635176,-500.0,0.00015451,2]
[350641776,1738014635185,-500.0,0.00015451,2]
[350641777,1738014635196,-500.0,0.00015451,2]
[350641778,1738014635205,-500.0,0.00015451,2]
[350641779,1738014635214,-500.0,0.00015451,2]
[350641780,1738014635223,-500.0,0.00015451,2]
[350641781,1738014635232,-500.0,0.00015451,2]
[350641782,1738014635241,-505.14056078,0.00015451,2]
[350641783,1738014635250,-500.0,0.00015451,2]
[350641784,1738014635259,-500.0,0.00015451,2]
[350641785,1738014635268,-488.07048772,0.00015451,2]
[350641786,1738014635277,-160.88379766,0.00015451,2]
[350641787,1738014635286,-500.0,0.00015451,2]
[350641788,1738014635296,-500.0,0.00015451,2]
[350641789,1738014635305,-500.0,0.00015451,2]
[350641790,1738014635314,-500.0,0.00015451,2]
[350641791,1738014635323,-500.0,0.00015451,2]
[350641792,1738014635331,-500.0,0.00015451,2]
[350641793,1738014635340,-500.0,0.00015451,2]
[350641794,1738014635349,-156.69434047,0.00015451,2]
[350641795,1738014635358,-500.0,0.00015451,2]
[350641796,1738014635367,-499.2909364,0.00015451,2]
[350641797,1738014635375,-500.0,0.00015451,2]
[350641798,1738014635384,-500.0,0.00015451,2]
[350641799,1738014635393,-500.0,0.00015451,2]
[350641800,1738014635403,-500.0,0.00015451,2]
[350641801,1738014635414,-500.0,0.00015451,2]
[350641802,1738014635425,-500.0,0.00015451,2]
[350641803,1738014635434,-205.64702266,0.00015451,2]
[350641804,1738014635444,-500.0,0.00015451,2]
[350641805,1738014635453,-500.0,0.00015451,2]
[350641806,1738014635463,-182.6104028,0.00015451,2]
[350641807,1738014635472,-500.0,0.00015451,2]
[350641808,1738014635481,-500.0,0.00015451,2]
[350641809,1738014635490,-500.0,0.00015451,2]
[350641810,1738014635500,-500.0,0.00015451,2]
[350641811,1738014635509,-500.0,0.00015451,2]
[350641812,1738014635518,-500.0,0.00015451,2]
[350641813,1738014635527,-242.00170093,0.00015451,2]
[350641814,1738014635537,-500.0,0.00015451,2]
[350641815,1738014635545,-500.0,0.00015451,2]
[350641816,1738014635554,-500.0,0.00015451,2]
[350641817,1738014635564,-500.0,0.00015451,2]
[350641818,1738014635574,-500.0,0.00015451,2]
[350641819,1738014635583,-506.54302831,0.00015451,2]
[350641820,1738014635592,-500.0,0.00015451,2]
[350641821,1738014635602,-500.0,0.00015451,2]
[350641822,1738014635611,-500.0,0.00015451,2]
[350641823,1738014635620,-468.97103997,0.00015451,2]
[350641824,1738014635630,-500.0,0.00015451,2]
[350641825,1738014635639,-500.0,0.00015451,2]
[350641826,1738014635648,-500.0,0.00015451,2]
[350641827,1738014635657,-500.0,0.00015451,2]
[350641828,1738014635667,-500.0,0.00015451,2]
[350641829,1738014635676,-502.84135481,0.00015451,2]
[350641830,1738014635686,-500.0,0.00015451,2]
[350641831,1738014635696,-500.0,0.00015451,2]
[350641832,1738014635705,-603.67151919,0.00015451,2]
[350641833,1738014635715,-500.0,0.00015451,2]
[350641834,1738014635724,-593.51436777,0.00015451,2]
[350641835,1738014635732,-500.0,0.00015451,2]
[350641836,1738014635742,-500.0,0.00015451,2]
[350641837,1738014635751,-500.0,0.00015451,2]
[350641838,1738014635760,-500.0,0.00015451,2]
[350641839,1738014635769,-31227.0,0.00015452,2]
[350641840,1738014635779,-454.33985844,0.0001547,2]
[350641841,1738014635788,-454.33985844,0.0001547,2]
[350641842,1738014635797,-454.33985844,0.0001547,2]
[350641843,1738014635807,-500.0,0.00015473,2]
[350641844,1738014635817,-174.07021624,0.00015478,2]
[350641845,1738014635826,-500.0,0.00015478,2]
[350641846,1738014635835,-500.0,0.00015478,2]
[350641847,1738014635844,-500.0,0.00015478,2]
[350641848,1738014635853,-500.0,0.00015478,2]
[350641849,1738014635861,-354.82268616,0.00015478,2]
[350641850,1738014635870,-500.0,0.00015478,2]
[350641851,1738014635880,-500.0,0.00015478,2]
[350641852,1738014635889,-500.0,0.00015478,2]
[350641853,1738014635898,-500.0,0.00015478,2]
[350641854,1738014635907,-500.0,0.00015478,2]
[350641855,1738014635917,-500.0,0.00015478,2]
[350641856,1738014635926,-500.0,0.00015478,2]
[350641857,1738014635935,-500.0,0.00015478,2]
[350641858,1738014635945,-500.0,0.00015478,2]
[350641859,1738014635954,-500.0,0.00015478,2]
[350641860,1738014635963,-500.0,0.00015478,2]
[350641861,1738014635972,-500.0,0.00015478,2]
[350641862,1738014635981,-500.0,0.00015478,2]
[350641863,1738014635990,-500.0,0.00015478,2]
[350641864,1738014635999,-500.0,0.00015478,2]
[350641865,1738014636008,-500.0,0.00015478,2]
[350641866,1738014636017,-500.0,0.00015478,2]
[350641867,1738014636026,-500.0,0.00015478,2]
[350641868,1738014636035,-500.0,0.00015478,2]
[350641869,1738014636044,-500.0,0.00015478,2]
[350641870,1738014636053,-500.0,0.00015478,2]
[350641871,1738014636062,-500.0,0.00015478,2]
[350641872,1738014636071,-500.0,0.00015478,2]
[350641873,1738014636080,-500.0,0.00015478,2]
[350641874,1738014636089,-500.0,0.00015478,2]
[350641875,1738014636098,-500.0,0.00015478,2]
[350641876,1738014636107,-500.0,0.00015478,2]
[350641877,1738014636116,-500.0,0.00015478,2]
[350641878,1738014636125,-500.0,0.00015478,2]
[350641879,1738014636135,-500.0,0.00015478,2]
[350641880,1738014636143,-500.0,0.00015478,2]
[350641881,1738014636153,-500.0,0.00015478,2]
[350641882,1738014636161,-500.0,0.00015478,2]
[350641883,1738014636171,-500.0,0.00015478,2]
[350641884,1738014636180,-500.0,0.00015478,2]
[350641885,1738014636190,-482.59231663,0.00015478,2]
[350641886,1738014636200,-500.0,0.00015478,2]
[350641887,1738014636209,-500.0,0.00015478,2]
[350641888,1738014636219,-500.0,0.00015478,2]
[350641889,1738014636229,-500.0,0.00015478,2]
[350641890,1738014636239,-500.0,0.00015478,2]
[350641891,1738014636248,-500.0,0.00015478,2]
[350641892,1738014636258,-500.0,0.00015478,2]
[350641893,1738014636267,-500.0,0.00015478,2]
[350641894,1738014636276,-500.0,0.00015478,2]
[350641895,1738014636285,-500.0,0.00015478,2]
[350641896,1738014636294,-500.0,0.00015478,2]
[350641897,1738014636303,-500.0,0.00015478,2]
[350641898,1738014636313,-383.07963243,0.00015478,2]
[350641899,1738014636322,-500.0,0.00015478,2]
[350641900,1738014636332,-500.0,0.00015479,2]
[350641901,1738014636342,-500.0,0.00015479,2]
[350641902,1738014636352,-500.0,0.00015479,2]
[350641903,1738014636362,-501.05505135,0.00015479,2]
[350641904,1738014636371,-427.72909319,0.00015479,2]
[350641905,1738014636381,-157.26545749,0.00015479,2]
[350641906,1738014636391,-500.0,0.00015479,2]
[350641907,1738014636401,-500.0,0.00015479,2]
[350641908,1738014636410,-500.0,0.00015479,2]
[350641909,1738014636422,-436.62713417,0.00015479,2]
[350641910,1738014636433,-280.38808493,0.00015479,2]
[350641911,1738014636445,-500.0,0.00015479,2]
[350641912,1738014636454,-666.0,0.00015479,2]
[350641913,1738014636464,-307.21607726,0.00015479,2]
[350641914,1738014636475,-417.01338686,0.00015479,2]
[350641915,1738014636485,-381.14479947,0.00015479,2]
[350641916,1738014636494,-508.09989908,0.00015479,2]
[350641917,1738014636504,-500.0,0.00015479,2]
[350641918,1738014636513,-500.0,0.00015479,2]
[350641919,1738014636522,-500.0,0.00015479,2]
[350641920,1738014636532,-500.0,0.00015479,2]
[350641921,1738014636541,-235.50299389,0.00015479,2]
[350641922,1738014636551,-500.0,0.00015479,2]
[350641923,1738014636559,-500.0,0.00015479,2]
[350641924,1738014636568,-500.0,0.00015479,2]
[350641925,1738014636577,-500.0,0.00015479,2]
[350641926,1738014636587,-505.74755549,0.00015479,2]
[350641927,1738014636596,-500.0,0.00015479,2]
[350641928,1738014636605,-503.63927575,0.00015479,2]
[350641929,1738014636614,-500.0,0.00015479,2]
[350641930,1738014636623,-500.0,0.00015479,2]
[350641931,1738014636632,-474.19049819,0.00015479,2]
[350641932,1738014636641,-151.15002694,0.00015479,2]
[350641933,1738014636650,-279.28,0.00015479,2]
[350641934,1738014636659,-500.0,0.00015479,2]
[350641935,1738014636669,-500.0,0.00015479,2]
[350641936,1738014636679,-500.0,0.00015479,2]
[350641937,1738014636688,-500.0,0.00015479,2]
[350641938,1738014636699,-500.0,0.00015479,2]
[350641939,1738014636709,-500.0,0.00015479,2]
[350641940,1738014636718,-500.0,0.00015479,2]
[350641941,1738014636727,-258.14,0.00015479,2]
[350641942,1738014636736,-500.0,0.00015479,2]
[350641943,1738014636746,-500.0,0.00015479,2]
[350641944,1738014636755,-500.0,0.00015479,2]
[350641945,1738014636765,-500.0,0.00015479,2]
[350641946,1738014636774,-500.0,0.00015479,2]
[350641947,1738014636783,-500.0,0.00015479,2]
[350641948,1738014636792,-500.0,0.00015479,2]
[350641949,1738014636801,-500.0,0.00015479,2]
[350641950,1738014636811,-500.0,0.00015479,2]
[350641951,1738014636820,-500.0,0.00015479,2]
[350641952,1738014636829,-266.68,0.00015479,2]
[350641953,1738014636838,-540.67719603,0.00015479,2]
[350641954,1738014636847,-362.01632384,0.00015479,2]
[350641955,1738014636856,-500.0,0.00015479,2]
[350641956,1738014636865,-500.0,0.00015479,2]
[350641957,1738014636875,-500.0,0.00015479,2]
[350641958,1738014636884,-500.0,0.00015479,2]
[350641959,1738014636894,-500.0,0.00015479,2]
[350641960,1738014636903,-500.0,0.00015479,2]
[350641961,1738014636912,-500.0,0.00015479,2]
[350641962,1738014636921,-239.88182755,0.00015479,2]
[350641963,1738014636930,-500.0,0.00015479,2]
[350641964,1738014636940,-500.0,0.00015479,2]
[350641965,1738014636950,-414.12,0.00015479,2]
[350641966,1738014636959,-500.0,0.00015479,2]
[350641967,1738014636968,-500.0,0.00015479,2]
[350641968,1738014636977,-500.0,0.00015479,2]
[350641969,1738014636986,-500.0,0.00015479,2]
[350641970,1738014636995,-520.22,0.00015479,2]
[350641971,1738014637004,-270.9992753,0.0001548,2]
[350641972,1738014637013,-1330313.4973571,0.0001548,2]
[350641973,1738014637022,-241004.68251985,0.0001548,2]
[350641974,1738014637032,-187371.55732617,0.0001548,2]
[350641975,1738014637048,-4710.59138291,0.0001548,2]
[350641976,1738014637060,-10568.7378646,0.0001548,2]
[350641977,1738014637263,-1187.2089524,0.0001548,2]
[350641978,1738014637292,-6018.81893899,0.0001548,2]
[350641979,1738014637304,-1183.60188158,0.0001548,2]
[350641980,1738014637397,-1472.99276287,0.0001548,2]
[350641981,1738014637507,-287486.49089048,0.0001548,2]
[350641983,1738014637517,-88045.98582509,0.0001548,2]
[350641985,1738014637528,-406658.03718055,0.0001548,2]
[350642028,1738014638169,-5295.97699436,0.0001548,2]
[350642029,1738014638179,-45474.02300566,0.0001548,2]
[350642030,1738014638189,-3259.64892761,0.0001548,2]
[350642031,1738014638346,-283.70874847,0.0001548,2]
[350642032,1738014638359,-1014.3,0.0001548,2]
[350642033,1738014638464,-9004.06217571,0.0001548,2]
[350642034,1738014638475,-6601.61156231,0.0001548,2]
[350642035,1738014638486,-51547.4914287,0.0001548,2]
[350642152,1738014640314,-303.5599995,0.0001548,2]
[350642153,1738014640326,-2588.24,0.0001548,2]
[350642154,1738014640337,-15878.02109971,0.0001548,2]
[350642155,1738014640523,-8491.44497284,0.0001548,2]
[350642196,1738014645020,-535.6198,0.0001517,2]
[350642197,1738014645031,-436.02,0.0001517,2]
[350642198,1738014645046,-111.36816044,0.0001517,2]
[350642199,1738014645055,-256.49036996,0.0001548,2]
[350642200,1738014645221,-275.7365001,0.0001548,2]
[350642201,1738014645317,-9569.09999999,0.0001548,2]
[350642202,1738014645328,-1580.25903154,0.0001548,2]
[350642213,1738014646217,-187.39766251,0.00015279,2]
[350642214,1738014646226,-8020.92194581,0.0001548,2]
[350642216,1738014646311,-10364.754633,0.0001548,2]
[350642217,1738014646322,-2592.1,0.0001548,2]
[350642218,1738014646333,-316.38607,0.0001548,2]
[350642219,1738014646491,-19883.57542205,0.0001548,2]
[350642220,1738014646503,-13464.20836404,0.0001548,2]
[350642221,1738014646521,-1804.8244766,0.0001548,2]
[350642222,1738014646532,-1500.0,0.0001548,2]
[350642223,1738014646546,-1056.1101875,0.0001548,2]
[350642228,1738014663863,200.0,0.00011903,2]
[350642229,1738014664159,200.0,0.00011856,2]
[350642230,1738014664463,200.0,0.00011852,2]
[350642231,1738014681866,273.56894128,0.00011835,2]
[350642232,1738014682178,273.56894128,0.0001184,2]
[350642233,1738014682462,273.56894128,0.00011829,2]
[350642234,1738014682745,273.56894128,0.00011874,2]
[350642235,1738014683030,273.56894128,0.00011851,2]
[350642237,1738014700858,200.0,0.00011878,2]
[350642238,1738014783570,7561.80627087,0.0001185,2]
[350642239,1738014783881,7561.80627087,0.00011838,2]
[350642240,1738014784200,7561.80627087,0.00011838,2]
[350642241,1738014784502,7561.80627087,0.00011837,2]
[350642242,1738014784782,7561.80627087,0.00011901,2]
[350642246,1738015387964,329.41,0.00010137,2]
[350642247,1738015474091,981.53,0.00012,2]
[350642255,1738015562304,200.0,0.00011701,2]
[350642283,1738015659510,883.38,0.00012,2]
[350642284,1738015677919,163.69948666,0.0001194,2]
[350642415,1738015831611,-1015.27,0.00012427,2]
[350642416,1738015831620,-251.84,0.00013699,2]
[350642417,1738015831630,-167.7,0.00014131,2]
[350642418,1738015831640,-500.0,0.00014164,2]
[350642419,1738015831649,-600.0,0.00014164,2]
[350642420,1738015831658,-252.14,0.00014164,2]
[350642421,1738015831667,-200.0,0.00014177,2]
[350642422,1738015831677,-356.47290271,0.00014178,2]
[350642423,1738015831808,-913.35631045,0.00014178,2]
[350642424,1738015831840,-22630.17078684,0.00014178,2]
[350642425,1738015831849,-1000.0,0.00014225,2]
[350642426,1738015831860,-253.43,0.00014226,2]
[350642427,1738015831870,-250.0,0.00014226,2]
[350642428,1738015831879,-4000.0,0.00014357,2]
[350642429,1738015831888,-162.02,0.00014412,2]
[350642430,1738015831898,-250.0,0.00014445,2]
[350642431,1738015831907,-200.0,0.00014464,2]
[350642432,1738015831916,-500.0,0.00014498,2]
[350642433,1738015831925,-1900.0,0.000145,5]
[350642434,1738015831934,-3800.0,0.000146,5]
[350642435,1738015831946,-1015.27,0.00014691,2]
[350642436,1738015831955,-5800.0,0.000147,5]
[350642437,1738015831964,-7700.0,0.000148,5]
[350642438,1738015831974,-9600.0,0.000149,5]
[350642439,1738015831983,-550.0,0.00015,2]
[350642440,1738015831992,-1000.0,0.00015,2]
[350642441,1738015832002,-1000.8668988,0.0001517,2]
[350642442,1738015832011,-1000.0,0.0001518,2]
[350642443,1738015832020,-16388.24231436,0.0001518,2]
[350642450,1738015837555,-811.899985,0.0001518,2]
[350642451,1738015837696,-10177.0,0.0001518,2]
[350642537,1738015839428,-364.96708586,0.0001518,2]
[350642538,1738015839469,-360.626445,0.0001518,2]
[350642539,1738015839480,-686.24633394,0.0001518,2]
[350642540,1738015839491,-16111.72383584,0.0001518,2]
[350642541,1738015839500,-3988.27616416,0.0001518,2]
[350642542,1738015839603,-396.21852322,0.0001518,2]
[350642543,1738015839615,-1170.86539645,0.0001518,2]
[350642544,1738015839626,-1153.82920904,0.0001518,2]
[350642545,1738015839800,-4104.20390713,0.0001518,2]
[350642546,1738015839810,-1000.0,0.000152,2]
[350642547,1738015839819,-500.0,0.00015279,2]
[350642548,1738015839828,-1377.81414027,0.0001538,2]
[350642549,1738015839837,-0.41954018,0.0001538,2]
[350642550,1738015839849,-422.16203926,0.0001538,2]
[350642551,1738015839858,-528.83796074,0.0001538,2]
[350642552,1738015839871,-317.03223926,0.0001538,2]
[350642553,1738015839881,-2567.81753139,0.0001538,2]
[350642554,1738015839892,-3151.84771964,0.0001538,2]
[350642557,1738015839903,-685.4,0.0001538,2]
[350642559,1738015839914,-1229.8,0.0001538,2]
[350642561,1738015839925,-47920.13474897,0.0001538,2]
[350642563,1738015839935,-150.0,0.000154,2]
[350642565,1738015839946,-1000.0,0.000154,2]
[350642567,1738015839955,-1658.11595554,0.000154,2]
[350642569,1738015839965,-389.87327567,0.00015473,2]
[350642571,1738015839975,-158.63656591,0.00015479,2]
[350642573,1738015839983,-500.0,0.00015479,2]
[350642575,1738015839993,-500.0,0.00015479,2]
[350642577,1738015840002,-500.0,0.00015479,2]
[350642579,1738015840011,-558.0,0.0001548,2]
[350642581,1738015840020,-253841.97864394,0.0001548,2]
[350642583,1738015840031,-860.24150565,0.0001548,2]
[350642584,1738015840042,-269.90622001,0.0001548,2]
[350642585,1738015840057,-396.90030752,0.0001548,2]
[350642586,1738015840068,-1606.229472,0.0001548,2]
[350642770,1738015842566,-27894.16492978,0.0001548,2]
[350642772,1738015842575,-272859.57365595,0.0001548,2]
[350642774,1738015842586,-9210.52416909,0.0001548,2]
[350642776,1738015842597,-1122.50766248,0.0001548,2]
[350642778,1738015842608,-6092.71197185,0.0001548,2]
[350642780,1738015842619,-747.55574587,0.0001548,2]
[350642782,1738015842630,-16317.0032043,0.0001548,2]
[350642784,1738015842641,-1749.75,0.0001548,2]
[350642786,1738015842652,-1047.85371,0.0001548,2]
[350642788,1738015842663,-6766.8835218,0.0001548,2]
[350642790,1738015842674,-931.13278959,0.0001548,2]
[350642792,1738015842685,-10520.0,0.0001548,2]
[350642794,1738015842697,-22491.7547035,0.0001548,2]
[350642796,1738015842708,-401.0,0.0001548,2]
[350642799,1738015842722,-536.12221686,0.0001548,2]
[350642802,1738015842744,-11004.33159885,0.0001548,2]
[350642806,1738015842772,-45861.593285,0.0001548,2]
[350642809,1738015842800,-914.60170298,0.0001548,2]
[350642812,1738015842825,-10177.0,0.0001548,2]
[350642816,1738015842851,-7779.51271135,0.0001548,2]
[350643086,1738015845445,-51058.54814466,0.0001548,2]
[350643100,1738015845572,-795.04,0.000124,2]
[350643102,1738015845582,-510.0,0.0001548,2]
[350643104,1738015845591,-6099.37532893,0.0001548,2]
[350643107,1738015845602,-2153.718366,0.0001548,2]
[350643109,1738015845613,-3629.03467891,0.0001548,2]
[350643111,1738015845624,-545.865996,0.0001548,2]
[350643113,1738015845635,-1085.5,0.0001548,2]
[350643115,1738015845647,-8896.54483603,0.0001548,2]
[350643117,1738015845656,-13890.83486819,0.0001548,2]
[350643120,1738015845667,-4195.01213382,0.0001548,2]
[350643122,1738015845678,-4710.64127638,0.0001548,2]
[350643128,1738015845751,-2969.99999951,0.0001548,2]
[350643129,1738015845763,-2891.7852158,0.0001548,2]
[350643130,1738015845788,-281771.84030652,0.0001548,2]
[350643131,1738015845800,-1760.00000008,0.0001548,2]
[350643132,1738015845819,-6860.55891031,0.0001548,2]
[350643151,1738015926182,1301.02760633,0.0001187,2]
[350643152,1738015926469,1301.02760633,0.00011827,2]
[350643153,1738015926928,1301.02760633,0.00011848,2]
[350643154,1738015927051,1301.02760633,0.000119,2]
[350643155,1738015927371,1301.02760633,0.00011842,2]
[350643156,1738015933659,200.0,0.00011848,2]
[350643157,1738015933939,200.0,0.00011889,2]
[350643158,1738015945322,200.0,0.00011895,2]
[350643165,1738016522082,164.4,0.00010137,2]
[350643170,1738016708985,398485.04742881,0.0001,2]
[350643174,1738016741468,117855.80179368,0.000108,2]
[350643180,1738016859629,276.56533952,0.0001,2]
[350643182,1738016876299,28534.54878928,0.0001,2]
[350643183,1738016884833,2555.72240357,0.00011999,2]
[350643333,1738017031776,-715.53,0.000124,2]
[350643334,1738017031786,-913.74,0.00012438,2]
[350643335,1738017031795,-914.7188138,0.00013334,2]
[350643336,1738017031804,-357.664498,0.00013434,2]
[350643337,1738017031813,-914.7188138,0.00013536,2]
[350643338,1738017031822,-613.83,0.00013627,2]
[350643339,1738017031831,-162.02,0.00013636,2]
[350643340,1738017031840,-1133.51,0.00013671,2]
[350643341,1738017031851,-201.47,0.00013699,2]
[350643342,1738017031860,-200.0,0.00013699,2]
[350643343,1738017031870,-250.0,0.00013727,2]
[350643344,1738017031879,-161.03,0.00013808,2]
[350643345,1738017031888,-167.7,0.00013892,2]
[350643346,1738017031896,-1141.21,0.000141,2]
[350643347,1738017031905,-1000.0,0.00014108,2]
[350643348,1738017031915,-29741.54,0.00014159,2]
[350643349,1738017031925,-600.0,0.00014164,2]
[350643350,1738017031934,-500.0,0.00014164,2]
[350643351,1738017031943,-152.86,0.00014205,2]
[350643352,1738017031953,-150.0,0.00014215,2]
[350643353,1738017031962,-4674.48155799,0.00014216,2]
[350643354,1738017031974,-357.355385,0.00014216,2]
[350643355,1738017031985,-5535.76,0.00014216,2]
[350643356,1738017031996,-3867.55864951,0.00014216,2]
[350643357,1738017032008,-9464.8444075,0.00014216,2]
[350643358,1738017032017,-200.0,0.00014402,2]
[350643359,1738017032026,-300.0,0.00014403,2]
[350643360,1738017032036,-400.44,0.00014506,2]
[350643361,1738017032045,-285.46,0.00014506,2]
[350643362,1738017032054,-1369.90937191,0.0001452,2]
[350643363,1738017032066,-1284.926294,0.0001452,2]
[350643364,1738017032077,-389.613202,0.0001452,2]